[Event "Titled Tuesday Blitz September 28 2021"]
[White "Aradhya, Garg"]
[Black "Vrencian, Lehel"]
[WhiteFideId "25006746"]
[BlackFideId "1230999"]
[WhiteElo "2146"]
[BlackElo "2058"]
[Result "0-1"]
[Round "02"]
[TimeControl "180+1"]
[Date "2021.09.28"]
[WhiteClock "0:00:01"]
[BlackClock "0:00:22"]

1. d4 {[%clk 0:02:59]}  d5 {[%clk 0:03:00]} 2. c4 {[%clk 0:02:58]}  dxc4 {[%clk 0:03:01]} 3. e4 {[%clk 0:02:57]}  Nf6 {[%clk 0:03:02]} 4. e5 {[%clk 0:02:54]}  Nd5 {[%clk 0:03:01]} 5. Bxc4 {[%clk 0:02:54]}  Nc6 {[%clk 0:03:02]} 6. Nc3 {[%clk 0:02:46]}  Nb6 {[%clk 0:03:01]} 7. Bb5 {[%clk 0:02:42]}  Bd7 {[%clk 0:03:02]} 8. Nf3 {[%clk 0:02:31]}  e6 {[%clk 0:02:55]} 9. O-O {[%clk 0:02:29]}  Nb4 {[%clk 0:02:54]} 10. Ng5 {[%clk 0:02:25]}  Bxb5 {[%clk 0:02:47]} 11. Nxb5 {[%clk 0:02:19]}  Qd7 {[%clk 0:02:46]} 12. a4 {[%clk 0:02:17]}  a6 {[%clk 0:02:34]} 13. Nc3 {[%clk 0:02:14]}  O-O-O {[%clk 0:02:33]} 14. Qf3 {[%clk 0:02:13]}  Nc2 {[%clk 0:02:27]} 15. Nxf7 {[%clk 0:02:07]}  Nxa1 {[%clk 0:02:11]} 16. Nxh8 {[%clk 0:01:59]}  Nc2 {[%clk 0:02:11]} 17. Be3 {[%clk 0:01:45]}  Bb4 {[%clk 0:02:07]} 18. Na2 {[%clk 0:01:19]}  Rxh8 {[%clk 0:02:03]} 19. Qe4 {[%clk 0:01:13]}  Nxe3 {[%clk 0:01:58]} 20. fxe3 {[%clk 0:01:12]}  Be7 {[%clk 0:01:58]} 21. Rf7 {[%clk 0:01:08]}  Qxa4 {[%clk 0:01:47]} 22. Rxe7 {[%clk 0:00:35]}  Qd1+ {[%clk 0:01:45]} 23. Kf2 {[%clk 0:00:34]}  Rf8+ {[%clk 0:01:45]} 24. Kg3 {[%clk 0:00:32]}  Qe1+ {[%clk 0:01:35]} 25. Kh3 {[%clk 0:00:29]}  Rf5 {[%clk 0:01:26]} 26. Qh4 {[%clk 0:00:22]}  Qxe3+ {[%clk 0:01:19]} 27. g3 {[%clk 0:00:21]}  Kb8 {[%clk 0:00:50]} 28. Rxg7 {[%clk 0:00:08]}  Qf3 {[%clk 0:00:44]} 29. Rxh7 {[%clk 0:00:07]}  Qf1+ {[%clk 0:00:34]} 30. Kg4 {[%clk 0:00:03]}  Qe2+ {[%clk 0:00:30]} 31. Kh3 {[%clk 0:00:02]}  Rf2 {[%clk 0:00:23]} 32. Qd8+ {[%clk 0:00:01]}  Ka7 {[%clk 0:00:22]} 0-1


[Site "https://www.chess.com"]

[Event "Titled Tuesday Blitz September 28 2021"]
[White "Avramidou, Anastasia"]
[Black "Fier, Alexandr"]
[WhiteFideId "4239873"]
[BlackFideId "2107139"]
[WhiteElo "2183"]
[BlackElo "2569"]
[Result "0-1"]
[Round "02"]
[TimeControl "180+1"]
[Date "2021.09.28"]
[WhiteClock "0:00:03"]
[BlackClock "0:01:15"]

1. Nf3 {[%clk 0:03:00]}  Nf6 {[%clk 0:02:58]} 2. c4 {[%clk 0:02:58]}  c5 {[%clk 0:02:58]} 3. Nc3 {[%clk 0:02:58]}  Nc6 {[%clk 0:02:58]} 4. g3 {[%clk 0:02:58]}  d5 {[%clk 0:02:56]} 5. cxd5 {[%clk 0:02:58]}  Nxd5 {[%clk 0:02:56]} 6. Bg2 {[%clk 0:02:59]}  Nc7 {[%clk 0:02:57]} 7. O-O {[%clk 0:02:58]}  e5 {[%clk 0:02:58]} 8. d3 {[%clk 0:02:58]}  Be7 {[%clk 0:02:57]} 9. Be3 {[%clk 0:02:58]}  O-O {[%clk 0:02:56]} 10. Rc1 {[%clk 0:02:58]}  Bd7 {[%clk 0:02:52]} 11. Nd2 {[%clk 0:02:52]}  b6 {[%clk 0:02:48]} 12. Nc4 {[%clk 0:02:50]}  f6 {[%clk 0:02:48]} 13. a3 {[%clk 0:02:46]}  Rc8 {[%clk 0:02:48]} 14. Qb3 {[%clk 0:02:38]}  Kh8 {[%clk 0:02:46]} 15. Rfd1 {[%clk 0:02:30]}  Nd4 {[%clk 0:02:44]} 16. Bxd4 {[%clk 0:02:30]}  exd4 {[%clk 0:02:45]} 17. Ne4 {[%clk 0:02:29]}  Bg4 {[%clk 0:02:43]} 18. Re1 {[%clk 0:02:10]}  f5 {[%clk 0:02:41]} 19. Ned2 {[%clk 0:02:06]}  f4 {[%clk 0:02:42]} 20. Nf3 {[%clk 0:02:05]}  fxg3 {[%clk 0:02:37]} 21. hxg3 {[%clk 0:02:06]}  Be6 {[%clk 0:02:37]} 22. Qc2 {[%clk 0:02:03]}  Nd5 {[%clk 0:02:33]} 23. e4 {[%clk 0:01:58]}  dxe3 {[%clk 0:02:32]} 24. Nxe3 {[%clk 0:01:56]}  Nxe3 {[%clk 0:02:30]} 25. Rxe3 {[%clk 0:01:57]}  Bd5 {[%clk 0:02:31]} 26. Rce1 {[%clk 0:01:54]}  Bf6 {[%clk 0:02:31]} 27. Ne5 {[%clk 0:01:35]}  Bxg2 {[%clk 0:02:29]} 28. Kxg2 {[%clk 0:01:36]}  Qd5+ {[%clk 0:02:30]} 29. Kg1 {[%clk 0:01:29]}  Rcd8 {[%clk 0:02:28]} 30. Qc4 {[%clk 0:01:17]}  Qxc4 {[%clk 0:01:59]} 31. dxc4 {[%clk 0:00:53]}  Kg8 {[%clk 0:01:58]} 32. b4 {[%clk 0:00:52]}  Rd4 {[%clk 0:01:52]} 33. bxc5 {[%clk 0:00:48]}  bxc5 {[%clk 0:01:53]} 34. Nc6 {[%clk 0:00:47]}  Rxc4 {[%clk 0:01:53]} 35. Re4 {[%clk 0:00:40]}  Rc2 {[%clk 0:01:47]} 36. Rf4 {[%clk 0:00:29]}  a6 {[%clk 0:01:45]} 37. Re6 {[%clk 0:00:26]}  h6 {[%clk 0:01:45]} 38. a4 {[%clk 0:00:16]}  c4 {[%clk 0:01:36]} 39. Nb4 {[%clk 0:00:15]}  Rc1+ {[%clk 0:01:36]} 40. Kg2 {[%clk 0:00:15]}  a5 {[%clk 0:01:31]} 41. Nd5 {[%clk 0:00:16]}  Bg5 {[%clk 0:01:25]} 42. Rxf8+ {[%clk 0:00:11]}  Kxf8 {[%clk 0:01:26]} 43. Rc6 {[%clk 0:00:11]}  Kf7 {[%clk 0:01:24]} 44. f4 {[%clk 0:00:11]}  Bd8 {[%clk 0:01:24]} 45. Rc8 {[%clk 0:00:11]}  Bf6 {[%clk 0:01:24]} 46. Nxf6 {[%clk 0:00:10]}  Kxf6 {[%clk 0:01:24]} 47. Rc5 {[%clk 0:00:11]}  c3 {[%clk 0:01:21]} 48. Rxa5 {[%clk 0:00:11]}  Ke6 {[%clk 0:01:16]} 49. Rc5 {[%clk 0:00:11]}  Kd6 {[%clk 0:01:17]} 50. Rc8 {[%clk 0:00:11]}  Kd5 {[%clk 0:01:17]} 51. a5 {[%clk 0:00:11]}  Kd4 {[%clk 0:01:17]} 52. Rd8+ {[%clk 0:00:08]}  Ke3 {[%clk 0:01:17]} 53. Re8+ {[%clk 0:00:08]}  Kd2 {[%clk 0:01:18]} 54. Rd8+ {[%clk 0:00:08]}  Kc2 {[%clk 0:01:19]} 55. a6 {[%clk 0:00:07]}  Ra1 {[%clk 0:01:19]} 56. Ra8 {[%clk 0:00:08]}  Kc1 {[%clk 0:01:18]} 57. Kf2 {[%clk 0:00:07]}  c2 {[%clk 0:01:18]} 58. Ke2 {[%clk 0:00:03]}  Ra3 {[%clk 0:01:17]} 59. a7 {[%clk 0:00:03]}  Ra6 {[%clk 0:01:15]} 0-1


[Site "https://www.chess.com"]

[Event "Titled Tuesday Blitz September 28 2021"]
[White "Costachi, Mihnea"]
[Black "Xiong, Jeffery"]
[WhiteFideId "1217518"]
[BlackFideId "2047640"]
[WhiteElo "2594"]
[BlackElo "3023"]
[Result "1-0"]
[Round "02"]
[TimeControl "180+1"]
[Date "2021.09.28"]
[WhiteClock "0:02:02"]
[BlackClock "0:00:11"]

1. d4 {[%clk 0:03:00]}  Nf6 {[%clk 0:02:58]} 2. c4 {[%clk 0:03:01]}  c5 {[%clk 0:02:58]} 3. d5 {[%clk 0:03:01]}  b5 {[%clk 0:02:58]} 4. Qc2 {[%clk 0:03:01]}  b4 {[%clk 0:02:55]} 5. e4 {[%clk 0:03:00]}  d6 {[%clk 0:02:56]} 6. Bd3 {[%clk 0:02:58]}  g6 {[%clk 0:02:55]} 7. Nf3 {[%clk 0:02:56]}  Bg7 {[%clk 0:02:54]} 8. O-O {[%clk 0:02:57]}  Nbd7 {[%clk 0:02:52]} 9. Re1 {[%clk 0:02:55]}  Ng4 {[%clk 0:02:50]} 10. a3 {[%clk 0:02:53]}  O-O {[%clk 0:02:47]} 11. h3 {[%clk 0:02:51]}  Nge5 {[%clk 0:02:47]} 12. Nxe5 {[%clk 0:02:52]}  Bxe5 {[%clk 0:02:47]} 13. Bh6 {[%clk 0:02:51]}  Re8 {[%clk 0:02:47]} 14. Nd2 {[%clk 0:02:48]}  Qb6 {[%clk 0:02:46]} 15. f4 {[%clk 0:02:45]}  Bd4+ {[%clk 0:02:43]} 16. Kh1 {[%clk 0:02:46]}  bxa3 {[%clk 0:02:35]} 17. Rxa3 {[%clk 0:02:44]}  Qxb2 {[%clk 0:02:35]} 18. Qxb2 {[%clk 0:02:37]}  Bxb2 {[%clk 0:02:35]} 19. Rb3 {[%clk 0:02:38]}  Bh8 {[%clk 0:02:35]} 20. Nf3 {[%clk 0:02:37]}  a5 {[%clk 0:02:28]} 21. e5 {[%clk 0:02:36]}  a4 {[%clk 0:02:28]} 22. Ra3 {[%clk 0:02:37]}  Nb6 {[%clk 0:02:04]} 23. exd6 {[%clk 0:02:31]}  Bf5 {[%clk 0:01:26]} 24. dxe7 {[%clk 0:02:21]}  Bb2 {[%clk 0:01:23]} 25. Ra2 {[%clk 0:02:22]}  Bxd3 {[%clk 0:01:18]} 26. Rxb2 {[%clk 0:02:21]}  Nxc4 {[%clk 0:01:19]} 27. Rb7 {[%clk 0:02:13]}  a3 {[%clk 0:01:18]} 28. Ne5 {[%clk 0:02:13]}  a2 {[%clk 0:01:12]} 29. Ra1 {[%clk 0:02:08]}  Nxe5 {[%clk 0:00:53]} 30. fxe5 {[%clk 0:02:08]}  Be4 {[%clk 0:00:54]} 31. Rd7 {[%clk 0:02:04]}  c4 {[%clk 0:00:49]} 32. d6 {[%clk 0:02:04]}  Bc6 {[%clk 0:00:11]} 33. Rc7 {[%clk 0:02:02]} 1-0


[Site "https://www.chess.com"]

[Event "Titled Tuesday Blitz September 28 2021"]
[White "Coto Mederos, Michel"]
[Black "Mgeladze, Tamaz"]
[WhiteFideId "3508528"]
[BlackFideId "13601202"]
[WhiteElo "2427"]
[BlackElo "2258"]
[Result "0-1"]
[Round "02"]
[TimeControl "180+1"]
[Date "2021.09.28"]
[WhiteClock "0:00:16"]
[BlackClock "0:01:40"]

1. c4 {[%clk 0:03:00]}  c5 {[%clk 0:02:58]} 2. b3 {[%clk 0:02:59]}  Nf6 {[%clk 0:02:57]} 3. Bb2 {[%clk 0:02:58]}  g6 {[%clk 0:02:58]} 4. Bxf6 {[%clk 0:02:57]}  exf6 {[%clk 0:02:59]} 5. Nc3 {[%clk 0:02:58]}  Bg7 {[%clk 0:02:58]} 6. g3 {[%clk 0:02:58]}  O-O {[%clk 0:02:57]} 7. Bg2 {[%clk 0:02:58]}  Nc6 {[%clk 0:02:57]} 8. e3 {[%clk 0:02:59]}  d6 {[%clk 0:02:56]} 9. Nge2 {[%clk 0:02:58]}  f5 {[%clk 0:02:56]} 10. O-O {[%clk 0:02:58]}  Re8 {[%clk 0:02:54]} 11. Rc1 {[%clk 0:02:58]}  Qd7 {[%clk 0:02:53]} 12. Nd5 {[%clk 0:02:54]}  b6 {[%clk 0:02:52]} 13. d4 {[%clk 0:02:46]}  cxd4 {[%clk 0:02:45]} 14. Nxd4 {[%clk 0:02:22]}  Bb7 {[%clk 0:02:46]} 15. Nxc6 {[%clk 0:02:16]}  Bxc6 {[%clk 0:02:45]} 16. Qd3 {[%clk 0:02:14]}  Rad8 {[%clk 0:02:40]} 17. Nb4 {[%clk 0:02:11]}  Bxg2 {[%clk 0:02:36]} 18. Kxg2 {[%clk 0:02:11]}  h5 {[%clk 0:02:35]} 19. h4 {[%clk 0:02:11]}  Bf6 {[%clk 0:02:34]} 20. Nd5 {[%clk 0:02:10]}  Kg7 {[%clk 0:02:35]} 21. Nxf6 {[%clk 0:02:01]}  Kxf6 {[%clk 0:02:35]} 22. Rfd1 {[%clk 0:02:01]}  Qe6 {[%clk 0:02:33]} 23. Qc3+ {[%clk 0:02:00]}  Qe5 {[%clk 0:02:32]} 24. Rd5 {[%clk 0:02:00]}  Qxc3 {[%clk 0:02:32]} 25. Rxc3 {[%clk 0:02:00]}  Re6 {[%clk 0:02:29]} 26. Rcd3 {[%clk 0:02:01]}  Ke7 {[%clk 0:02:29]} 27. b4 {[%clk 0:02:00]}  Rc8 {[%clk 0:02:30]} 28. R3d4 {[%clk 0:01:57]}  Rc6 {[%clk 0:02:27]} 29. Kf3 {[%clk 0:01:54]}  Re4 {[%clk 0:02:25]} 30. Ke2 {[%clk 0:01:50]}  Rxc4 {[%clk 0:02:23]} 31. Rxd6 {[%clk 0:01:45]}  Rc2+ {[%clk 0:02:14]} 32. Kf3 {[%clk 0:01:30]}  Rxd4 {[%clk 0:02:15]} 33. Rxd4 {[%clk 0:01:31]}  Rxa2 {[%clk 0:02:15]} 34. Rc4 {[%clk 0:01:28]}  Ra4 {[%clk 0:02:12]} 35. Rc7+ {[%clk 0:01:26]}  Ke6 {[%clk 0:02:13]} 36. b5 {[%clk 0:01:23]}  Ra5 {[%clk 0:02:11]} 37. Kf4 {[%clk 0:01:17]}  Ra4+ {[%clk 0:02:09]} 38. Kf3 {[%clk 0:01:16]}  Ra5 {[%clk 0:02:04]} 39. Kf4 {[%clk 0:01:16]}  Rxb5 {[%clk 0:02:05]} 40. Rxa7 {[%clk 0:01:16]}  Rb4+ {[%clk 0:02:05]} 41. Kg5 {[%clk 0:01:07]}  Rg4+ {[%clk 0:01:58]} 42. Kh6 {[%clk 0:01:07]}  b5 {[%clk 0:01:59]} 43. Rb7 {[%clk 0:01:06]}  b4 {[%clk 0:01:59]} 44. Kg7 {[%clk 0:01:05]}  Kd5 {[%clk 0:01:57]} 45. f3 {[%clk 0:00:45]}  Rxg3 {[%clk 0:01:54]} 46. Rxb4 {[%clk 0:00:43]}  Rxf3 {[%clk 0:01:54]} 47. Kxf7 {[%clk 0:00:43]}  Rg3 {[%clk 0:01:52]} 48. Rb6 {[%clk 0:00:31]}  Rxe3 {[%clk 0:01:48]} 49. Kxg6 {[%clk 0:00:27]}  Re6+ {[%clk 0:01:44]} 50. Rxe6 {[%clk 0:00:18]}  Kxe6 {[%clk 0:01:45]} 51. Kg5 {[%clk 0:00:19]}  Ke5 {[%clk 0:01:44]} 52. Kxh5 {[%clk 0:00:16]}  Kf6 {[%clk 0:01:44]} 53. Kh6 {[%clk 0:00:17]}  f4 {[%clk 0:01:44]} 54. h5 {[%clk 0:00:18]}  f3 {[%clk 0:01:45]} 55. Kh7 {[%clk 0:00:18]}  f2 {[%clk 0:01:46]} 56. h6 {[%clk 0:00:19]}  f1=Q {[%clk 0:01:46]} 57. Kg8 {[%clk 0:00:20]}  Qg2+ {[%clk 0:01:45]} 58. Kh8 {[%clk 0:00:17]}  Qg6 {[%clk 0:01:40]} 59. h7 {[%clk 0:00:16]}  Qe8# {[%clk 0:01:40]} 0-1


[Site "https://www.chess.com"]

[Event "Titled Tuesday Blitz September 28 2021"]
[White "Espinosa Veloz, Ermes"]
[Black "Zhalmakhanov, Ramazan"]
[WhiteFideId "3507424"]
[BlackFideId "13706357"]
[WhiteElo "2333"]
[BlackElo "2531"]
[Result "1/2-1/2"]
[Round "02"]
[TimeControl "180+1"]
[Date "2021.09.28"]
[WhiteClock "0:00:01"]
[BlackClock "0:00:05"]

1. e4 {[%clk 0:03:00]}  c5 {[%clk 0:02:58]} 2. Nf3 {[%clk 0:03:00]}  Nc6 {[%clk 0:02:58]} 3. Bb5 {[%clk 0:02:59]}  e6 {[%clk 0:02:58]} 4. O-O {[%clk 0:02:58]}  Nge7 {[%clk 0:02:58]} 5. c3 {[%clk 0:02:57]}  a6 {[%clk 0:02:58]} 6. Be2 {[%clk 0:02:57]}  d5 {[%clk 0:02:55]} 7. exd5 {[%clk 0:02:56]}  Nxd5 {[%clk 0:02:55]} 8. d4 {[%clk 0:02:55]}  Bd6 {[%clk 0:02:45]} 9. dxc5 {[%clk 0:02:51]}  Bxc5 {[%clk 0:02:45]} 10. c4 {[%clk 0:02:49]}  Nf6 {[%clk 0:02:34]} 11. Qxd8+ {[%clk 0:02:48]}  Kxd8 {[%clk 0:02:34]} 12. Nc3 {[%clk 0:02:47]}  Ke7 {[%clk 0:02:34]} 13. a3 {[%clk 0:02:43]}  Nd4 {[%clk 0:02:21]} 14. Nxd4 {[%clk 0:02:30]}  Bxd4 {[%clk 0:02:22]} 15. Bd2 {[%clk 0:02:30]}  Bd7 {[%clk 0:02:16]} 16. Bf3 {[%clk 0:02:29]}  Bc6 {[%clk 0:02:08]} 17. Bxc6 {[%clk 0:02:29]}  bxc6 {[%clk 0:02:09]} 18. Ne2 {[%clk 0:01:52]}  Bb6 {[%clk 0:01:24]} 19. b4 {[%clk 0:01:46]}  Rhd8 {[%clk 0:01:23]} 20. Rad1 {[%clk 0:01:45]}  Rd3 {[%clk 0:01:14]} 21. Be3 {[%clk 0:00:36]}  Rxe3 {[%clk 0:01:03]} 22. fxe3 {[%clk 0:00:36]}  Bxe3+ {[%clk 0:01:04]} 23. Kh1 {[%clk 0:00:36]}  Ne4 {[%clk 0:01:05]} 24. Ra1 {[%clk 0:00:26]}  Rd8 {[%clk 0:00:47]} 25. g3 {[%clk 0:00:23]}  Rd2 {[%clk 0:00:47]} 26. Rfe1 {[%clk 0:00:23]}  Nf2+ {[%clk 0:00:45]} 27. Kg2 {[%clk 0:00:23]}  Nd3 {[%clk 0:00:46]} 28. Red1 {[%clk 0:00:19]}  Rxe2+ {[%clk 0:00:33]} 29. Kf3 {[%clk 0:00:19]}  Rxh2 {[%clk 0:00:25]} 30. Kxe3 {[%clk 0:00:17]}  Ne5 {[%clk 0:00:15]} 31. Rh1 {[%clk 0:00:17]}  Rg2 {[%clk 0:00:13]} 32. Kd4 {[%clk 0:00:16]}  f6 {[%clk 0:00:07]} 33. Rxh7 {[%clk 0:00:15]}  Kf7 {[%clk 0:00:07]} 34. Rh8 {[%clk 0:00:14]}  Rxg3 {[%clk 0:00:07]} 35. Ra8 {[%clk 0:00:13]}  Rd3+ {[%clk 0:00:07]} 36. Kc5 {[%clk 0:00:13]}  Rc3 {[%clk 0:00:07]} 37. Rxa6 {[%clk 0:00:13]}  Rxc4+ {[%clk 0:00:08]} 38. Kb6 {[%clk 0:00:14]}  g5 {[%clk 0:00:08]} 39. Ra7+ {[%clk 0:00:12]}  Kg6 {[%clk 0:00:09]} 40. Re7 {[%clk 0:00:12]}  Kf5 {[%clk 0:00:05]} 41. Rf1+ {[%clk 0:00:11]}  Rf4 {[%clk 0:00:06]} 42. Rc1 {[%clk 0:00:09]}  g4 {[%clk 0:00:04]} 43. Rb1 {[%clk 0:00:09]}  Nc4+ {[%clk 0:00:04]} 44. Kc7 {[%clk 0:00:07]}  Nxa3 {[%clk 0:00:04]} 45. Rc1 {[%clk 0:00:08]}  Rxb4 {[%clk 0:00:03]} 46. Rxc6 {[%clk 0:00:06]}  Rc4 {[%clk 0:00:02]} 47. Rxe6 {[%clk 0:00:05]}  Rxc6+ {[%clk 0:00:02]} 48. Rxc6 {[%clk 0:00:05]}  g3 {[%clk 0:00:03]} 49. Rc3 {[%clk 0:00:05]}  g2 {[%clk 0:00:03]} 50. Rg3 {[%clk 0:00:04]}  Nb5+ {[%clk 0:00:02]} 51. Kb6 {[%clk 0:00:04]}  Nd4 {[%clk 0:00:03]} 52. Rxg2 {[%clk 0:00:04]}  Ke4 {[%clk 0:00:04]} 53. Rf2 {[%clk 0:00:03]}  Nf3 {[%clk 0:00:05]} 54. Re2+ {[%clk 0:00:02]}  Kf4 {[%clk 0:00:05]} 55. Re8 {[%clk 0:00:02]}  Ne5 {[%clk 0:00:04]} 56. Kc7 {[%clk 0:00:02]}  Ng6 {[%clk 0:00:04]} 57. Re6 {[%clk 0:00:02]}  Kf5 {[%clk 0:00:04]} 58. Rxf6+ {[%clk 0:00:01]}  Kxf6 {[%clk 0:00:05]} 1/2-1/2


[Site "https://www.chess.com"]

[Event "Titled Tuesday Blitz September 28 2021"]
[White "Gracia Alvarez, Gerardo Antonio"]
[Black "Bologan, Victor"]
[WhiteFideId "5109124"]
[BlackFideId "13900048"]
[WhiteElo "2148"]
[BlackElo "2511"]
[Result "0-1"]
[Round "02"]
[TimeControl "180+1"]
[Date "2021.09.28"]
[WhiteClock "0:00:01"]
[BlackClock "0:00:49"]

1. e4 {[%clk 0:03:00]}  e5 {[%clk 0:02:56]} 2. Nf3 {[%clk 0:03:00]}  Nc6 {[%clk 0:02:56]} 3. Nc3 {[%clk 0:02:57]}  Nf6 {[%clk 0:02:56]} 4. d4 {[%clk 0:02:57]}  exd4 {[%clk 0:02:55]} 5. Nxd4 {[%clk 0:02:57]}  Bb4 {[%clk 0:02:55]} 6. Nxc6 {[%clk 0:02:55]}  bxc6 {[%clk 0:02:56]} 7. Bd3 {[%clk 0:02:54]}  d5 {[%clk 0:02:56]} 8. Bd2 {[%clk 0:02:52]}  O-O {[%clk 0:02:53]} 9. O-O {[%clk 0:02:51]}  Bd6 {[%clk 0:02:48]} 10. Bg5 {[%clk 0:02:10]}  h6 {[%clk 0:02:39]} 11. Bh4 {[%clk 0:02:07]}  Be5 {[%clk 0:02:38]} 12. exd5 {[%clk 0:01:52]}  Bxc3 {[%clk 0:02:36]} 13. bxc3 {[%clk 0:01:49]}  cxd5 {[%clk 0:02:36]} 14. c4 {[%clk 0:01:35]}  Bb7 {[%clk 0:02:34]} 15. Qf3 {[%clk 0:01:28]}  g5 {[%clk 0:02:25]} 16. Bg3 {[%clk 0:01:21]}  Rb8 {[%clk 0:02:19]} 17. Be5 {[%clk 0:00:48]}  dxc4 {[%clk 0:02:06]} 18. Bxf6 {[%clk 0:00:36]}  Bxf3 {[%clk 0:02:03]} 19. Bxd8 {[%clk 0:00:34]}  cxd3 {[%clk 0:01:34]} 20. Bxc7 {[%clk 0:00:27]}  Bxg2 {[%clk 0:01:33]} 21. Bxb8 {[%clk 0:00:20]}  Bxf1 {[%clk 0:01:30]} 22. Kxf1 {[%clk 0:00:18]}  Rxb8 {[%clk 0:01:27]} 23. cxd3 {[%clk 0:00:19]}  Rb2 {[%clk 0:01:27]} 24. a4 {[%clk 0:00:16]}  a5 {[%clk 0:01:22]} 25. Rc1 {[%clk 0:00:12]}  Ra2 {[%clk 0:01:21]} 26. Rc6 {[%clk 0:00:07]}  Kg7 {[%clk 0:01:13]} 27. Ke1 {[%clk 0:00:07]}  Rxa4 {[%clk 0:01:11]} 28. Kd2 {[%clk 0:00:08]}  Rh4 {[%clk 0:01:09]} 29. Ra6 {[%clk 0:00:06]}  Rxh2 {[%clk 0:01:05]} 30. Ke3 {[%clk 0:00:05]}  Rh3+ {[%clk 0:00:59]} 31. Ke4 {[%clk 0:00:05]}  Rh4+ {[%clk 0:00:58]} 32. Ke3 {[%clk 0:00:04]}  Ra4 {[%clk 0:00:58]} 33. d4 {[%clk 0:00:05]}  Ra1 {[%clk 0:00:58]} 34. d5 {[%clk 0:00:03]}  a4 {[%clk 0:00:57]} 35. Kd4 {[%clk 0:00:02]}  a3 {[%clk 0:00:55]} 36. Kc5 {[%clk 0:00:01]}  a2 {[%clk 0:00:52]} 37. Kd6 {[%clk 0:00:01]}  h5 {[%clk 0:00:51]} 38. Kd7 {[%clk 0:00:01]}  Rd1 {[%clk 0:00:49]} 0-1


[Site "https://www.chess.com"]

[Event "Titled Tuesday Blitz September 28 2021"]
[White "Grunberg, Mihai-Lucian"]
[Black "Petriashvili, Nikoloz"]
[WhiteFideId "1204149"]
[BlackFideId "13611216"]
[WhiteElo "2364"]
[BlackElo "2430"]
[Result "1/2-1/2"]
[Round "02"]
[TimeControl "180+1"]
[Date "2021.09.28"]
[WhiteClock "0:00:05"]
[BlackClock "0:00:25"]

1. Nf3 {[%clk 0:03:00]}  Nc6 {[%clk 0:02:56]} 2. d4 {[%clk 0:02:59]}  d5 {[%clk 0:02:56]} 3. c4 {[%clk 0:02:59]}  e6 {[%clk 0:02:57]} 4. e3 {[%clk 0:02:59]}  Nf6 {[%clk 0:02:57]} 5. Nc3 {[%clk 0:02:59]}  Bb4 {[%clk 0:02:56]} 6. Bd2 {[%clk 0:02:56]}  O-O {[%clk 0:02:57]} 7. a3 {[%clk 0:02:47]}  Be7 {[%clk 0:02:56]} 8. Qc2 {[%clk 0:02:46]}  Bd7 {[%clk 0:02:41]} 9. Bd3 {[%clk 0:02:44]}  Rc8 {[%clk 0:02:41]} 10. O-O {[%clk 0:02:43]}  b6 {[%clk 0:01:57]} 11. b4 {[%clk 0:02:41]}  dxc4 {[%clk 0:01:51]} 12. Bxc4 {[%clk 0:02:41]}  Nb8 {[%clk 0:01:52]} 13. e4 {[%clk 0:02:29]}  c5 {[%clk 0:01:52]} 14. bxc5 {[%clk 0:02:29]}  bxc5 {[%clk 0:01:52]} 15. d5 {[%clk 0:02:29]}  exd5 {[%clk 0:01:51]} 16. exd5 {[%clk 0:02:29]}  Bd6 {[%clk 0:01:46]} 17. Bg5 {[%clk 0:02:26]}  Bg4 {[%clk 0:01:46]} 18. Nd2 {[%clk 0:02:12]}  Nbd7 {[%clk 0:01:43]} 19. Nce4 {[%clk 0:02:05]}  Bf5 {[%clk 0:01:38]} 20. Bd3 {[%clk 0:01:44]}  Bxe4 {[%clk 0:01:24]} 21. Nxe4 {[%clk 0:01:42]}  Be5 {[%clk 0:01:19]} 22. Nxf6+ {[%clk 0:01:34]}  Nxf6 {[%clk 0:01:19]} 23. Bxh7+ {[%clk 0:01:29]}  Kh8 {[%clk 0:01:17]} 24. Bf5 {[%clk 0:01:27]}  Bxa1 {[%clk 0:01:08]} 25. Rxa1 {[%clk 0:01:18]}  Qxd5 {[%clk 0:01:01]} 26. Bxf6 {[%clk 0:01:12]}  gxf6 {[%clk 0:00:57]} 27. Bxc8 {[%clk 0:01:11]}  Rxc8 {[%clk 0:00:57]} 28. Rd1 {[%clk 0:01:06]}  Qe5 {[%clk 0:00:56]} 29. Qc4 {[%clk 0:01:01]}  Re8 {[%clk 0:00:49]} 30. h3 {[%clk 0:00:57]}  Qe2 {[%clk 0:00:45]} 31. Qxe2 {[%clk 0:00:36]}  Rxe2 {[%clk 0:00:46]} 32. Rd7 {[%clk 0:00:36]}  Kg7 {[%clk 0:00:46]} 33. Rxa7 {[%clk 0:00:35]}  c4 {[%clk 0:00:46]} 34. Rc7 {[%clk 0:00:35]}  Rc2 {[%clk 0:00:45]} 35. a4 {[%clk 0:00:34]}  c3 {[%clk 0:00:44]} 36. a5 {[%clk 0:00:34]}  Ra2 {[%clk 0:00:37]} 37. Rxc3 {[%clk 0:00:33]}  Rxa5 {[%clk 0:00:37]} 38. g3 {[%clk 0:00:33]}  Ra4 {[%clk 0:00:37]} 39. Kg2 {[%clk 0:00:34]}  Rb4 {[%clk 0:00:37]} 40. g4 {[%clk 0:00:31]}  Ra4 {[%clk 0:00:37]} 41. Kg3 {[%clk 0:00:31]}  Ra1 {[%clk 0:00:38]} 42. h4 {[%clk 0:00:28]}  Rg1+ {[%clk 0:00:37]} 43. Kf4 {[%clk 0:00:27]}  Rh1 {[%clk 0:00:38]} 44. h5 {[%clk 0:00:26]}  Rf1 {[%clk 0:00:38]} 45. f3 {[%clk 0:00:24]}  Ra1 {[%clk 0:00:38]} 46. Rc5 {[%clk 0:00:19]}  Ra3 {[%clk 0:00:37]} 47. Ke4 {[%clk 0:00:19]}  Rb3 {[%clk 0:00:36]} 48. Rf5 {[%clk 0:00:17]}  Rb4+ {[%clk 0:00:36]} 49. Ke3 {[%clk 0:00:17]}  Rb3+ {[%clk 0:00:37]} 50. Kf4 {[%clk 0:00:17]}  Rb4+ {[%clk 0:00:37]} 51. Kg3 {[%clk 0:00:18]}  Rb3 {[%clk 0:00:38]} 52. Kh4 {[%clk 0:00:17]}  Rb1 {[%clk 0:00:38]} 53. Kg3 {[%clk 0:00:14]}  Rg1+ {[%clk 0:00:38]} 54. Kf4 {[%clk 0:00:14]}  Rf1 {[%clk 0:00:38]} 55. h6+ {[%clk 0:00:12]}  Kxh6 {[%clk 0:00:37]} 56. Rxf6+ {[%clk 0:00:12]}  Kg7 {[%clk 0:00:38]} 57. g5 {[%clk 0:00:11]}  Rb1 {[%clk 0:00:37]} 58. Kg4 {[%clk 0:00:10]}  Rb4+ {[%clk 0:00:37]} 59. f4 {[%clk 0:00:10]}  Rb5 {[%clk 0:00:38]} 60. Ra6 {[%clk 0:00:09]}  Rb4 {[%clk 0:00:37]} 61. Ra7 {[%clk 0:00:08]}  Rc4 {[%clk 0:00:37]} 62. Kf5 {[%clk 0:00:08]}  Rc5+ {[%clk 0:00:38]} 63. Kg4 {[%clk 0:00:07]}  Rc4 {[%clk 0:00:38]} 64. Rb7 {[%clk 0:00:06]}  Ra4 {[%clk 0:00:38]} 65. Rb5 {[%clk 0:00:06]}  Ra1 {[%clk 0:00:37]} 66. Rf5 {[%clk 0:00:07]}  Rg1+ {[%clk 0:00:36]} 67. Kf3 {[%clk 0:00:07]}  Rf1+ {[%clk 0:00:37]} 68. Kg3 {[%clk 0:00:07]}  Kg6 {[%clk 0:00:36]} 69. Rf6+ {[%clk 0:00:07]}  Kg7 {[%clk 0:00:37]} 70. Rb6 {[%clk 0:00:07]}  Rg1+ {[%clk 0:00:37]} 71. Kf3 {[%clk 0:00:06]}  Rf1+ {[%clk 0:00:37]} 72. Kg4 {[%clk 0:00:07]}  Ra1 {[%clk 0:00:37]} 73. f5 {[%clk 0:00:07]}  Ra4+ {[%clk 0:00:36]} 74. Kh5 {[%clk 0:00:07]}  Ra1 {[%clk 0:00:35]} 75. g6 {[%clk 0:00:06]}  fxg6+ {[%clk 0:00:25]} 76. fxg6 {[%clk 0:00:05]}  Rh1+ {[%clk 0:00:24]} 77. Kg5 {[%clk 0:00:05]}  Rg1+ {[%clk 0:00:24]} 78. Kh5 {[%clk 0:00:05]}  Rh1+ {[%clk 0:00:25]} 79. Kg5 {[%clk 0:00:05]}  Rg1+ {[%clk 0:00:25]} 80. Kh5 {[%clk 0:00:05]}  Rh1+ {[%clk 0:00:25]} 1/2-1/2


[Site "https://www.chess.com"]